[Event "Titled Tuesday Blitz May 4 2021"]
[White "Indjic, Aleksandar"]
[Black "Wu, Christopher"]
[WhiteFideId "911925"]
[BlackFideId "2040875"]
[WhiteElo "2591"]
[BlackElo "2607"]
[Result "1-0"]
[Round "06"]
[TimeControl "180+1"]
[Date "2021.05.04"]
[WhiteClock "0:00:44"]
[BlackClock "0:00:20"]

1. e4 {[%clk 0:03:00]}  c5 {[%clk 0:02:59]} 2. Nc3 {[%clk 0:02:59]}  e6 {[%clk 0:02:59]} 3. Nge2 {[%clk 0:02:58]}  Nc6 {[%clk 0:02:59]} 4. g3 {[%clk 0:02:58]}  a6 {[%clk 0:02:58]} 5. Bg2 {[%clk 0:02:57]}  Nf6 {[%clk 0:02:58]} 6. O-O {[%clk 0:02:55]}  Be7 {[%clk 0:02:56]} 7. d3 {[%clk 0:02:54]}  d6 {[%clk 0:02:54]} 8. a4 {[%clk 0:02:53]}  O-O {[%clk 0:02:54]} 9. f4 {[%clk 0:02:53]}  Rb8 {[%clk 0:02:53]} 10. h3 {[%clk 0:02:52]}  Qc7 {[%clk 0:02:51]} 11. g4 {[%clk 0:02:53]}  b5 {[%clk 0:02:51]} 12. Ng3 {[%clk 0:02:52]}  Re8 {[%clk 0:02:47]} 13. g5 {[%clk 0:02:52]}  Nd7 {[%clk 0:02:47]} 14. Nce2 {[%clk 0:02:46]}  Bb7 {[%clk 0:02:44]} 15. h4 {[%clk 0:02:42]}  Nb6 {[%clk 0:02:38]} 16. a5 {[%clk 0:02:40]}  Nd7 {[%clk 0:02:38]} 17. Bd2 {[%clk 0:02:36]}  b4 {[%clk 0:02:38]} 18. f5 {[%clk 0:02:21]}  Bf8 {[%clk 0:02:29]} 19. Nf4 {[%clk 0:02:20]}  Nde5 {[%clk 0:02:18]} 20. h5 {[%clk 0:02:19]}  Nd8 {[%clk 0:01:57]} 21. c3 {[%clk 0:02:01]}  bxc3 {[%clk 0:01:52]} 22. bxc3 {[%clk 0:02:01]}  exf5 {[%clk 0:01:43]} 23. Nxf5 {[%clk 0:01:58]}  Ne6 {[%clk 0:01:43]} 24. Nd5 {[%clk 0:01:58]}  Bxd5 {[%clk 0:01:21]} 25. exd5 {[%clk 0:01:59]}  Nd8 {[%clk 0:01:22]} 26. Bf4 {[%clk 0:01:27]}  Qd7 {[%clk 0:01:15]} 27. Bh3 {[%clk 0:01:24]}  Qb5 {[%clk 0:01:10]} 28. Bxe5 {[%clk 0:01:09]}  Rxe5 {[%clk 0:01:07]} 29. c4 {[%clk 0:01:05]}  Qe8 {[%clk 0:00:57]} 30. Qd2 {[%clk 0:00:59]}  Re2 {[%clk 0:00:52]} 31. Rae1 {[%clk 0:00:57]}  Rxe1 {[%clk 0:00:36]} 32. Rxe1 {[%clk 0:00:55]}  Qa4 {[%clk 0:00:37]} 33. g6 {[%clk 0:00:54]}  hxg6 {[%clk 0:00:35]} 34. hxg6 {[%clk 0:00:55]}  fxg6 {[%clk 0:00:36]} 35. Nh4 {[%clk 0:00:54]}  Qa3 {[%clk 0:00:20]} 36. Nxg6 {[%clk 0:00:51]}  Qb2 {[%clk 0:00:20]} 37. Qxb2 {[%clk 0:00:48]}  Rxb2 {[%clk 0:00:21]} 38. Re8 {[%clk 0:00:48]}  Kf7 {[%clk 0:00:20]} 39. Rxf8+ {[%clk 0:00:47]}  Kxg6 {[%clk 0:00:21]} 40. Rxd8 {[%clk 0:00:47]}  Ra2 {[%clk 0:00:20]} 41. Rxd6+ {[%clk 0:00:46]}  Kg5 {[%clk 0:00:21]} 42. Rxa6 {[%clk 0:00:45]}  Kf4 {[%clk 0:00:21]} 43. Bf1 {[%clk 0:00:46]}  g5 {[%clk 0:00:20]} 44. d6 {[%clk 0:00:45]}  Rb2 {[%clk 0:00:20]} 45. Rb6 {[%clk 0:00:44]}  Ra2 {[%clk 0:00:20]} 46. d7 {[%clk 0:00:44]} 1-0


[Site "https://www.chess.com"]

[Event "Titled Tuesday Blitz May 4 2021"]
[White "Isajevsky, Anton"]
[Black "Lopez Del Alamo, Antonio"]
[WhiteFideId "4142500"]
[BlackFideId "2227339"]
[WhiteElo "2510"]
[BlackElo "2098"]
[Result "1-0"]
[Round "06"]
[TimeControl "180+1"]
[Date "2021.05.04"]
[WhiteClock "0:00:16"]
[BlackClock "0:00:46"]

1. c4 {[%clk 0:03:00]}  Nf6 {[%clk 0:02:56]} 2. Nc3 {[%clk 0:03:00]}  g6 {[%clk 0:02:54]} 3. g3 {[%clk 0:02:57]}  Bg7 {[%clk 0:02:54]} 4. Bg2 {[%clk 0:02:57]}  d6 {[%clk 0:02:54]} 5. e3 {[%clk 0:02:53]}  O-O {[%clk 0:02:54]} 6. Nge2 {[%clk 0:02:54]}  e5 {[%clk 0:02:54]} 7. O-O {[%clk 0:02:54]}  Re8 {[%clk 0:02:54]} 8. d3 {[%clk 0:02:51]}  c6 {[%clk 0:02:53]} 9. b3 {[%clk 0:02:45]}  d5 {[%clk 0:02:48]} 10. Bb2 {[%clk 0:02:43]}  a6 {[%clk 0:02:47]} 11. Rc1 {[%clk 0:02:38]}  h5 {[%clk 0:02:29]} 12. h3 {[%clk 0:02:09]}  Be6 {[%clk 0:02:26]} 13. Kh2 {[%clk 0:01:42]}  Nbd7 {[%clk 0:02:11]} 14. cxd5 {[%clk 0:01:24]}  Nxd5 {[%clk 0:02:10]} 15. Ne4 {[%clk 0:01:20]}  Qe7 {[%clk 0:02:04]} 16. a3 {[%clk 0:01:15]}  f5 {[%clk 0:02:03]} 17. Nd2 {[%clk 0:01:15]}  h4 {[%clk 0:01:54]} 18. e4 {[%clk 0:01:06]}  hxg3+ {[%clk 0:01:50]} 19. Nxg3 {[%clk 0:01:07]}  Nf4 {[%clk 0:01:48]} 20. Nf3 {[%clk 0:01:07]}  Nxg2 {[%clk 0:01:38]} 21. Kxg2 {[%clk 0:01:07]}  f4 {[%clk 0:01:39]} 22. Ne2 {[%clk 0:01:03]}  g5 {[%clk 0:01:31]} 23. Nh2 {[%clk 0:01:02]}  Nf6 {[%clk 0:01:28]} 24. f3 {[%clk 0:00:57]}  Nh5 {[%clk 0:01:23]} 25. Ng4 {[%clk 0:00:55]}  Ng3 {[%clk 0:01:19]} 26. Nxg3 {[%clk 0:00:53]}  fxg3 {[%clk 0:01:20]} 27. Kxg3 {[%clk 0:00:51]}  Qf7 {[%clk 0:01:17]} 28. b4 {[%clk 0:00:50]}  Qh5 {[%clk 0:01:17]} 29. Kg2 {[%clk 0:00:47]}  Rf8 {[%clk 0:01:15]} 30. Rc5 {[%clk 0:00:36]}  Rad8 {[%clk 0:01:08]} 31. Bxe5 {[%clk 0:00:34]}  Bxg4 {[%clk 0:01:07]} 32. hxg4 {[%clk 0:00:31]}  Qf7 {[%clk 0:01:04]} 33. Bxg7 {[%clk 0:00:25]}  Qxg7 {[%clk 0:01:03]} 34. Qd2 {[%clk 0:00:25]}  Rf4 {[%clk 0:01:03]} 35. Rh1 {[%clk 0:00:18]}  Rdf8 {[%clk 0:00:57]} 36. Rh5 {[%clk 0:00:18]}  Qa1 {[%clk 0:00:51]} 37. Rcxg5+ {[%clk 0:00:16]}  Kf7 {[%clk 0:00:49]} 38. Qxf4+ {[%clk 0:00:17]}  Ke8 {[%clk 0:00:49]} 39. Re5+ {[%clk 0:00:16]}  Kd7 {[%clk 0:00:48]} 40. Qxf8 {[%clk 0:00:16]}  Qb2+ {[%clk 0:00:46]} 41. Kg3 {[%clk 0:00:16]} 1-0


[Site "https://www.chess.com"]

[Event "Titled Tuesday Blitz May 4 2021"]
[White "Iskusnyh, Sergei"]
[Black "Shtyka, Sergey"]
[WhiteFideId "4120027"]
[BlackFideId "4138465"]
[WhiteElo "2492"]
[BlackElo "2102"]
[Result "1-0"]
[Round "06"]
[TimeControl "180+1"]
[Date "2021.05.04"]
[WhiteClock "0:01:16"]
[BlackClock "0:00:59"]

1. d4 {[%clk 0:03:00]}  c5 {[%clk 0:02:59]} 2. d5 {[%clk 0:02:59]}  e5 {[%clk 0:02:59]} 3. e4 {[%clk 0:02:58]}  d6 {[%clk 0:02:59]} 4. Bb5+ {[%clk 0:02:57]}  Bd7 {[%clk 0:02:58]} 5. a4 {[%clk 0:02:57]}  Be7 {[%clk 0:02:57]} 6. Nf3 {[%clk 0:02:54]}  a6 {[%clk 0:02:56]} 7. Be2 {[%clk 0:02:53]}  Nf6 {[%clk 0:02:54]} 8. Nc3 {[%clk 0:02:52]}  Bg4 {[%clk 0:02:54]} 9. Nd2 {[%clk 0:02:52]}  Bxe2 {[%clk 0:02:53]} 10. Qxe2 {[%clk 0:02:52]}  O-O {[%clk 0:02:53]} 11. O-O {[%clk 0:02:52]}  Nbd7 {[%clk 0:02:53]} 12. Nc4 {[%clk 0:02:47]}  Ne8 {[%clk 0:02:52]} 13. a5 {[%clk 0:02:43]}  Nc7 {[%clk 0:02:49]} 14. Na4 {[%clk 0:02:32]}  Nb5 {[%clk 0:02:46]} 15. c3 {[%clk 0:02:30]}  Bg5 {[%clk 0:02:43]} 16. Nab6 {[%clk 0:02:11]}  Nxb6 {[%clk 0:02:39]} 17. Nxb6 {[%clk 0:02:10]}  Rb8 {[%clk 0:02:29]} 18. Bxg5 {[%clk 0:02:08]}  Qxg5 {[%clk 0:02:28]} 19. Nd7 {[%clk 0:02:08]}  Qe7 {[%clk 0:02:19]} 20. Nxb8 {[%clk 0:02:07]}  Rxb8 {[%clk 0:02:18]} 21. Qg4 {[%clk 0:02:01]}  g6 {[%clk 0:02:16]} 22. f4 {[%clk 0:01:55]}  exf4 {[%clk 0:02:13]} 23. Rxf4 {[%clk 0:01:55]}  Rf8 {[%clk 0:02:09]} 24. Raf1 {[%clk 0:01:53]}  Nc7 {[%clk 0:02:06]} 25. h4 {[%clk 0:01:42]}  h5 {[%clk 0:01:47]} 26. Qg5 {[%clk 0:01:40]}  Qxg5 {[%clk 0:01:41]} 27. hxg5 {[%clk 0:01:40]}  Ne8 {[%clk 0:01:41]} 28. Kf2 {[%clk 0:01:33]}  Nc7 {[%clk 0:01:41]} 29. Ke3 {[%clk 0:01:31]}  Kg7 {[%clk 0:01:32]} 30. Kd3 {[%clk 0:01:27]}  Kg8 {[%clk 0:01:31]} 31. c4 {[%clk 0:01:23]}  Kg7 {[%clk 0:01:30]} 32. Kc3 {[%clk 0:01:23]}  Kg8 {[%clk 0:01:29]} 33. b4 {[%clk 0:01:23]}  cxb4+ {[%clk 0:01:29]} 34. Kxb4 {[%clk 0:01:23]}  Ne8 {[%clk 0:01:09]} 35. Kc3 {[%clk 0:01:21]}  Kg7 {[%clk 0:01:06]} 36. Kd4 {[%clk 0:01:19]}  f6 {[%clk 0:00:58]} 37. gxf6+ {[%clk 0:01:17]}  Rxf6 {[%clk 0:00:58]} 38. Rxf6 {[%clk 0:01:17]}  Nxf6 {[%clk 0:00:59]} 39. Rb1 {[%clk 0:01:16]} 1-0


[Site "https://www.chess.com"]

[Event "Titled Tuesday Blitz May 4 2021"]
[White "Ivanisevic, Ivan"]
[Black "Lazavik, Denis"]
[WhiteFideId "912417"]
[BlackFideId "13515110"]
[WhiteElo "2525"]
[BlackElo "2436"]
[Result "1/2-1/2"]
[Round "06"]
[TimeControl "180+1"]
[Date "2021.05.04"]
[WhiteClock "0:00:30"]
[BlackClock "0:00:13"]

1. d4 {[%clk 0:02:53]}  Nf6 {[%clk 0:03:00]} 2. c4 {[%clk 0:02:52]}  e6 {[%clk 0:03:00]} 3. Nc3 {[%clk 0:02:52]}  Bb4 {[%clk 0:03:00]} 4. e3 {[%clk 0:02:53]}  O-O {[%clk 0:02:56]} 5. Bd3 {[%clk 0:02:53]}  d5 {[%clk 0:02:54]} 6. Nf3 {[%clk 0:02:46]}  c5 {[%clk 0:02:51]} 7. cxd5 {[%clk 0:02:46]}  exd5 {[%clk 0:02:49]} 8. O-O {[%clk 0:02:45]}  c4 {[%clk 0:02:49]} 9. Bc2 {[%clk 0:02:43]}  Bg4 {[%clk 0:02:47]} 10. h3 {[%clk 0:02:42]}  Bh5 {[%clk 0:02:47]} 11. Ne2 {[%clk 0:02:38]}  Bd6 {[%clk 0:02:33]} 12. Ne5 {[%clk 0:02:33]}  Nc6 {[%clk 0:02:29]} 13. f4 {[%clk 0:02:31]}  Bxe2 {[%clk 0:02:20]} 14. Qxe2 {[%clk 0:02:31]}  Rc8 {[%clk 0:02:21]} 15. Bd2 {[%clk 0:02:30]}  b5 {[%clk 0:02:20]} 16. a4 {[%clk 0:02:24]}  b4 {[%clk 0:02:16]} 17. Be1 {[%clk 0:02:23]}  Na5 {[%clk 0:02:08]} 18. Bh4 {[%clk 0:02:19]}  Be7 {[%clk 0:02:08]} 19. g4 {[%clk 0:02:12]}  Ne4 {[%clk 0:01:57]} 20. Bxe7 {[%clk 0:02:09]}  Qxe7 {[%clk 0:01:58]} 21. Bxe4 {[%clk 0:02:09]}  dxe4 {[%clk 0:01:57]} 22. g5 {[%clk 0:02:04]}  f6 {[%clk 0:01:56]} 23. gxf6 {[%clk 0:02:03]}  gxf6 {[%clk 0:01:57]} 24. Ng4 {[%clk 0:01:56]}  Kh8 {[%clk 0:01:56]} 25. Kh2 {[%clk 0:01:54]}  c3 {[%clk 0:01:49]} 26. bxc3 {[%clk 0:01:48]}  Rxc3 {[%clk 0:01:48]} 27. Rg1 {[%clk 0:01:46]}  b3 {[%clk 0:01:45]} 28. Rac1 {[%clk 0:01:26]}  Rxc1 {[%clk 0:01:27]} 29. Rxc1 {[%clk 0:01:26]}  Rb8 {[%clk 0:01:28]} 30. Qb2 {[%clk 0:01:13]}  h5 {[%clk 0:01:03]} 31. Nh6 {[%clk 0:01:07]}  Qh7 {[%clk 0:00:43]} 32. Rc5 {[%clk 0:00:57]}  Qxh6 {[%clk 0:00:42]} 33. Rxa5 {[%clk 0:00:57]}  Qg6 {[%clk 0:00:42]} 34. Rb5 {[%clk 0:00:48]}  Rxb5 {[%clk 0:00:41]} 35. axb5 {[%clk 0:00:48]}  h4 {[%clk 0:00:21]} 36. Qxb3 {[%clk 0:00:47]}  Qg3+ {[%clk 0:00:21]} 37. Kh1 {[%clk 0:00:48]}  Qxh3+ {[%clk 0:00:22]} 38. Kg1 {[%clk 0:00:48]}  Qg3+ {[%clk 0:00:23]} 39. Kh1 {[%clk 0:00:47]}  h3 {[%clk 0:00:22]} 40. Qc2 {[%clk 0:00:41]}  Qxe3 {[%clk 0:00:17]} 41. Qc8+ {[%clk 0:00:40]}  Kh7 {[%clk 0:00:15]} 42. Qf5+ {[%clk 0:00:39]}  Kg7 {[%clk 0:00:16]} 43. Qg4+ {[%clk 0:00:39]}  Kf7 {[%clk 0:00:15]} 44. Qd7+ {[%clk 0:00:39]}  Kg6 {[%clk 0:00:15]} 45. Qg4+ {[%clk 0:00:38]}  Kh6 {[%clk 0:00:15]} 46. Qh4+ {[%clk 0:00:38]}  Kg7 {[%clk 0:00:16]} 47. Qg4+ {[%clk 0:00:38]}  Kf8 {[%clk 0:00:16]} 48. Qc8+ {[%clk 0:00:37]}  Ke7 {[%clk 0:00:17]} 49. Qc7+ {[%clk 0:00:31]}  Kf8 {[%clk 0:00:13]} 50. Qc8+ {[%clk 0:00:30]}  Kg7 {[%clk 0:00:13]} 51. Qg4+ {[%clk 0:00:30]} 1/2-1/2


[Site "https://www.chess.com"]

[Event "Titled Tuesday Blitz May 4 2021"]
[White "Jacobson, Brandon"]
[Black "Rakotomaharo, Fy Antenaina"]
[WhiteFideId "30901561"]
[BlackFideId "13100050"]
[WhiteElo "2362"]
[BlackElo "2378"]
[Result "1-0"]
[Round "06"]
[TimeControl "180+1"]
[Date "2021.05.04"]
[WhiteClock "0:00:16"]
[BlackClock "0:00:01"]

1. d4 {[%clk 0:03:00]}  Nf6 {[%clk 0:03:00]} 2. c4 {[%clk 0:03:01]}  g6 {[%clk 0:03:00]} 3. Nc3 {[%clk 0:03:01]}  d5 {[%clk 0:03:01]} 4. cxd5 {[%clk 0:03:02]}  Nxd5 {[%clk 0:03:02]} 5. e4 {[%clk 0:03:03]}  Nxc3 {[%clk 0:03:02]} 6. bxc3 {[%clk 0:03:03]}  Bg7 {[%clk 0:03:03]} 7. Nf3 {[%clk 0:03:04]}  c5 {[%clk 0:03:03]} 8. Rb1 {[%clk 0:03:02]}  O-O {[%clk 0:03:03]} 9. Be2 {[%clk 0:03:02]}  b6 {[%clk 0:03:00]} 10. O-O {[%clk 0:03:01]}  Bb7 {[%clk 0:02:58]} 11. d5 {[%clk 0:03:01]}  Bxc3 {[%clk 0:02:56]} 12. h4 {[%clk 0:03:00]}  Nd7 {[%clk 0:02:52]} 13. Bf4 {[%clk 0:03:00]}  Bg7 {[%clk 0:02:48]} 14. h5 {[%clk 0:03:00]}  Nf6 {[%clk 0:02:46]} 15. h6 {[%clk 0:03:00]}  Bh8 {[%clk 0:02:46]} 16. Ng5 {[%clk 0:03:01]}  Qd7 {[%clk 0:02:38]} 17. Qb3 {[%clk 0:02:37]}  Rad8 {[%clk 0:02:20]} 18. Rfd1 {[%clk 0:02:24]}  Qc8 {[%clk 0:02:06]} 19. Rbc1 {[%clk 0:01:43]}  Nh5 {[%clk 0:00:38]} 20. Bh2 {[%clk 0:01:01]}  Bf6 {[%clk 0:00:34]} 21. Qe3 {[%clk 0:00:39]}  Bd4 {[%clk 0:00:14]} 22. Rxd4 {[%clk 0:00:29]}  cxd4 {[%clk 0:00:14]} 23. Qd2 {[%clk 0:00:30]}  Qd7 {[%clk 0:00:06]} 24. Rc7 {[%clk 0:00:25]}  Qa4 {[%clk 0:00:04]} 25. Rxb7 {[%clk 0:00:21]}  Nf6 {[%clk 0:00:04]} 26. Rxe7 {[%clk 0:00:18]}  Rc8 {[%clk 0:00:03]} 27. Be5 {[%clk 0:00:17]}  Rc2 {[%clk 0:00:03]} 28. Qxd4 {[%clk 0:00:16]}  Qxd4 {[%clk 0:00:02]} 29. Bxd4 {[%clk 0:00:16]}  Rxe2 {[%clk 0:00:01]} 30. Bxf6 {[%clk 0:00:17]}  Re1+ {[%clk 0:00:01]} 31. Kh2 {[%clk 0:00:17]}  Rc8 {[%clk 0:00:01]} 32. d6 {[%clk 0:00:16]} 1-0


[Site "https://www.chess.com"]

[Event "Titled Tuesday Blitz May 4 2021"]
[White "Jakubowska, Anna"]
[Black "Remolar Gallen, Jose"]
[WhiteFideId "1121952"]
[BlackFideId "2215187"]
[WhiteElo "2006"]
[BlackElo "2203"]
[Result "1-0"]
[Round "06"]
[TimeControl "180+1"]
[Date "2021.05.04"]
[WhiteClock "0:00:09"]
[BlackClock "0:00:02"]

1. e4 {[%clk 0:03:00]}  c5 {[%clk 0:02:59]} 2. Nc3 {[%clk 0:02:58]}  g6 {[%clk 0:02:58]} 3. g3 {[%clk 0:02:58]}  Bg7 {[%clk 0:02:58]} 4. Bg2 {[%clk 0:02:59]}  Nc6 {[%clk 0:02:58]} 5. d3 {[%clk 0:02:59]}  d6 {[%clk 0:02:59]} 6. Nh3 {[%clk 0:02:59]}  Nf6 {[%clk 0:02:50]} 7. O-O {[%clk 0:02:59]}  O-O {[%clk 0:02:50]} 8. f4 {[%clk 0:02:45]}  Bg4 {[%clk 0:02:46]} 9. Qd2 {[%clk 0:02:43]}  Nd4 {[%clk 0:02:45]} 10. Ng5 {[%clk 0:02:34]}  h6 {[%clk 0:02:07]} 11. Nf3 {[%clk 0:02:33]}  Nxf3+ {[%clk 0:02:04]} 12. Bxf3 {[%clk 0:02:34]}  Bxf3 {[%clk 0:02:05]} 13. Rxf3 {[%clk 0:02:34]}  Rb8 {[%clk 0:02:06]} 14. Qe2 {[%clk 0:02:20]}  b5 {[%clk 0:02:04]} 15. Bd2 {[%clk 0:02:18]}  b4 {[%clk 0:02:03]} 16. Nd1 {[%clk 0:02:17]}  Qd7 {[%clk 0:02:00]} 17. Ne3 {[%clk 0:02:09]}  a5 {[%clk 0:01:52]} 18. Raf1 {[%clk 0:02:04]}  a4 {[%clk 0:01:50]} 19. f5 {[%clk 0:02:03]}  g5 {[%clk 0:01:31]} 20. R3f2 {[%clk 0:01:56]}  Rfc8 {[%clk 0:01:16]} 21. h4 {[%clk 0:01:52]}  Nh7 {[%clk 0:01:14]} 22. Nd5 {[%clk 0:01:44]}  e6 {[%clk 0:01:05]} 23. fxe6 {[%clk 0:01:43]}  fxe6 {[%clk 0:01:06]} 24. hxg5 {[%clk 0:01:01]}  exd5 {[%clk 0:00:59]} 25. gxh6 {[%clk 0:01:01]}  Bd4 {[%clk 0:00:58]} 26. Be3 {[%clk 0:00:57]}  Rf8 {[%clk 0:00:53]} 27. Bxd4 {[%clk 0:00:52]}  cxd4 {[%clk 0:00:53]} 28. exd5 {[%clk 0:00:53]}  Rxf2 {[%clk 0:00:43]} 29. Rxf2 {[%clk 0:00:52]}  Rf8 {[%clk 0:00:40]} 30. Rxf8+ {[%clk 0:00:36]}  Nxf8 {[%clk 0:00:38]} 31. Qe4 {[%clk 0:00:29]}  Qh3 {[%clk 0:00:28]} 32. Qf4 {[%clk 0:00:26]}  Ng6 {[%clk 0:00:19]} 33. Qxd6 {[%clk 0:00:26]}  Qf5 {[%clk 0:00:15]} 34. Qxb4 {[%clk 0:00:13]}  Ne5 {[%clk 0:00:11]} 35. Qb8+ {[%clk 0:00:11]}  Kh7 {[%clk 0:00:11]} 36. Qd6 {[%clk 0:00:10]}  Qg5 {[%clk 0:00:08]} 37. Kg2 {[%clk 0:00:08]}  Qd2+ {[%clk 0:00:07]} 38. Kh3 {[%clk 0:00:08]}  Qxh6+ {[%clk 0:00:07]} 39. Qxh6+ {[%clk 0:00:08]}  Kxh6 {[%clk 0:00:08]} 40. d6 {[%clk 0:00:08]}  Kg5 {[%clk 0:00:08]} 41. g4 {[%clk 0:00:08]}  Nd7 {[%clk 0:00:05]} 42. Kg3 {[%clk 0:00:08]}  Ne5 {[%clk 0:00:05]} 43. Kh3 {[%clk 0:00:08]}  Nd7 {[%clk 0:00:02]} 44. Kg3 {[%clk 0:00:08]}  Nf6 {[%clk 0:00:03]} 45. Kf3 {[%clk 0:00:08]}  Nd7 {[%clk 0:00:01]} 46. Ke4 {[%clk 0:00:08]}  Nf6+ {[%clk 0:00:01]} 47. Ke5 {[%clk 0:00:07]}  Nxg4+ {[%clk 0:00:02]} 48. Ke6 {[%clk 0:00:08]}  Nf6 {[%clk 0:00:03]} 49. Ke5 {[%clk 0:00:07]}  Nd7+ {[%clk 0:00:03]} 50. Kxd4 {[%clk 0:00:07]}  Kf6 {[%clk 0:00:03]} 51. Kc4 {[%clk 0:00:08]}  Ke6 {[%clk 0:00:03]} 52. Kb4 {[%clk 0:00:08]}  Kxd6 {[%clk 0:00:04]} 53. Kxa4 {[%clk 0:00:08]}  Kc5 {[%clk 0:00:04]} 54. c3 {[%clk 0:00:08]}  Kb6 {[%clk 0:00:04]} 55. Kb4 {[%clk 0:00:08]}  Nc5 {[%clk 0:00:03]} 56. d4 {[%clk 0:00:08]}  Nd3+ {[%clk 0:00:04]} 57. Kb3 {[%clk 0:00:09]}  Nc1+ {[%clk 0:00:04]} 58. Kc2 {[%clk 0:00:09]}  Nxa2 {[%clk 0:00:03]} 59. b3 {[%clk 0:00:09]}  Kb5 {[%clk 0:00:02]} 60. Kb2 {[%clk 0:00:09]} 1-0


[Site "https://www.chess.com"]

[Event "Titled Tuesday Blitz May 4 2021"]
[White "Jobava, Baadur"]
[Black "Salinas Herrera, Pablo"]
[WhiteFideId "13601520"]
[BlackFideId "3407128"]
[WhiteElo "2748"]
[BlackElo "2541"]
[Result "1-0"]
[Round "06"]
[TimeControl "180+1"]
[Date "2021.05.04"]
[WhiteClock "0:01:02"]
[BlackClock "0:00:01"]

1. d4 {[%clk 0:03:00]}  d5 {[%clk 0:02:59]} 2. Nc3 {[%clk 0:03:01]}  Nf6 {[%clk 0:02:59]} 3. Bf4 {[%clk 0:03:01]}  e6 {[%clk 0:02:59]} 4. Nb5 {[%clk 0:03:01]}  Na6 {[%clk 0:02:56]} 5. e3 {[%clk 0:03:01]}  Be7 {[%clk 0:02:56]} 6. Nf3 {[%clk 0:03:01]}  O-O {[%clk 0:02:57]} 7. h3 {[%clk 0:03:01]}  c6 {[%clk 0:02:57]} 8. Nc3 {[%clk 0:03:01]}  c5 {[%clk 0:02:56]} 9. a3 {[%clk 0:03:00]}  Bd7 {[%clk 0:02:55]} 10. Bd3 {[%clk 0:03:00]}  Rc8 {[%clk 0:02:52]} 11. O-O {[%clk 0:02:59]}  Nb8 {[%clk 0:02:45]} 12. Re1 {[%clk 0:02:59]}  a6 {[%clk 0:02:38]} 13. Ne5 {[%clk 0:02:58]}  Be8 {[%clk 0:02:38]} 14. dxc5 {[%clk 0:02:55]}  Bxc5 {[%clk 0:02:38]} 15. Ne2 {[%clk 0:02:50]}  Nc6 {[%clk 0:02:37]} 16. c3 {[%clk 0:02:49]}  Bd6 {[%clk 0:02:29]} 17. Nxc6 {[%clk 0:02:46]}  Bxc6 {[%clk 0:02:29]} 18. Nd4 {[%clk 0:02:45]}  e5 {[%clk 0:02:03]} 19. Nxc6 {[%clk 0:02:44]}  bxc6 {[%clk 0:02:04]} 20. Bg5 {[%clk 0:02:40]}  h6 {[%clk 0:01:27]} 21. Bxf6 {[%clk 0:02:38]}  Qxf6 {[%clk 0:01:28]} 22. Bxa6 {[%clk 0:02:38]}  Rb8 {[%clk 0:01:28]} 23. Rb1 {[%clk 0:02:32]}  e4 {[%clk 0:01:27]} 24. Bf1 {[%clk 0:02:29]}  Qe5 {[%clk 0:01:15]} 25. g3 {[%clk 0:02:29]}  h5 {[%clk 0:01:16]} 26. h4 {[%clk 0:02:27]}  g6 {[%clk 0:01:06]} 27. a4 {[%clk 0:02:27]}  Rfe8 {[%clk 0:00:50]} 28. a5 {[%clk 0:02:25]}  Re6 {[%clk 0:00:50]} 29. a6 {[%clk 0:02:19]}  Rf6 {[%clk 0:00:48]} 30. Bg2 {[%clk 0:02:16]}  Ra8 {[%clk 0:00:23]} 31. Ra1 {[%clk 0:02:15]}  Kg7 {[%clk 0:00:23]} 32. Rf1 {[%clk 0:01:57]}  Ra7 {[%clk 0:00:19]} 33. Qd4 {[%clk 0:01:56]}  Qe7 {[%clk 0:00:19]} 34. c4 {[%clk 0:01:42]}  Be5 {[%clk 0:00:19]} 35. Qd2 {[%clk 0:01:42]}  g5 {[%clk 0:00:18]} 36. hxg5 {[%clk 0:01:42]}  Rd6 {[%clk 0:00:18]} 37. cxd5 {[%clk 0:01:38]}  cxd5 {[%clk 0:00:18]} 38. f4 {[%clk 0:01:33]}  exf3 {[%clk 0:00:18]} 39. Rxf3 {[%clk 0:01:33]}  Qxg5 {[%clk 0:00:18]} 40. Qf2 {[%clk 0:01:33]}  Qg6 {[%clk 0:00:16]} 41. Rf1 {[%clk 0:01:26]}  Rdxa6 {[%clk 0:00:16]} 42. Rf5 {[%clk 0:01:17]}  Bxg3 {[%clk 0:00:16]} 43. Qd2 {[%clk 0:01:18]}  Ra4 {[%clk 0:00:14]} 44. Qxd5 {[%clk 0:01:17]}  Rg4 {[%clk 0:00:14]} 45. Rf6 {[%clk 0:01:13]}  Qxf6 {[%clk 0:00:08]} 46. Rxf6 {[%clk 0:01:14]}  Kxf6 {[%clk 0:00:09]} 47. Qxh5 {[%clk 0:01:14]}  Raa4 {[%clk 0:00:09]} 48. Kf1 {[%clk 0:01:09]}  Rg5 {[%clk 0:00:08]} 49. Qh8+ {[%clk 0:01:08]}  Ke7 {[%clk 0:00:08]} 50. Bc6 {[%clk 0:01:07]}  Ra1+ {[%clk 0:00:07]} 51. Ke2 {[%clk 0:01:08]}  Be5 {[%clk 0:00:07]} 52. Qe8+ {[%clk 0:01:07]}  Kd6 {[%clk 0:00:05]} 53. Qd8+ {[%clk 0:01:08]}  Kxc6 {[%clk 0:00:05]} 54. Qxg5 {[%clk 0:01:08]}  Ra5 {[%clk 0:00:01]} 55. Qf5 {[%clk 0:01:02]} 1-0


[Site "https://www.chess.com"]